fUSD/lending_fUSD_20251117
["ID","MTS","AMOUNT","RATE_DAILY","PERIOD"]
[394198431,1763371861550,-355.123468,0.00030137,31]
[394198432,1763371861564,-355.123468,0.00030137,31]
[394198433,1763371861574,-644.285248,0.00030137,31]
[394198434,1763371861584,-151.0,0.00030137,31]
[394198435,1763371861593,-355.123471,0.00030137,31]
[394198436,1763371861603,-644.285248,0.00030137,31]
[394198437,1763371861614,-151.0,0.00030137,31]
[394198438,1763371861624,-644.285248,0.00030137,31]
[394198439,1763371861633,-644.285238,0.00030137,31]
[394198440,1763371861643,-151.0,0.00030137,31]
[394198441,1763371861653,-520.938436,0.00030137,31]
[394198442,1763371861663,-151.0,0.00030137,31]
[394198443,1763371861674,-520.938436,0.00030137,31]
[394198444,1763371861684,-151.0,0.00030137,31]
[394198445,1763371861695,-520.938436,0.00030137,31]
[394198446,1763371861706,-151.0,0.00030137,30]
[394198447,1763371861719,-520.938428,0.00030137,31]
[394198448,1763371861730,-327.819716,0.00030137,31]
[394198449,1763371861740,-327.819716,0.00030137,31]
[394198450,1763371861753,-693.34,0.000302,30]
[394198451,1763371861763,-4802.18,0.000302,2]
[394198452,1763371861773,-342.97,0.000302,7]
[394198453,1763371861783,-1104.14589985,0.00030218,5]
[394198454,1763371861794,-374.58708372,0.00030313,2]
[394198455,1763371861804,-308.1164299,0.00030409,10]
[394198456,1763371861814,-500.0,0.0003041,2]
[394198457,1763371861824,-500.0,0.0003041,2]
[394198458,1763371861834,-500.0,0.0003041,10]
[394198459,1763371861844,-500.0,0.0003041,2]
[394198460,1763371861853,-1961.62,0.0003041,2]
[394198461,1763371861863,-500.0,0.0003041,2]
[394198462,1763371861873,-300.0,0.0003041,2]
[394198463,1763371861883,-300.0,0.0003041,2]
[394198464,1763371861893,-500.0,0.0003041,2]
[394198465,1763371861908,-500.0,0.0003041,2]
[394198466,1763371861918,-500.0,0.0003041,2]
[394198467,1763371861928,-624.9813378,0.0003041,2]
[394198468,1763371861938,-500.0,0.0003041,2]
[394198469,1763371861947,-195.8498114,0.0003041,2]
[394198470,1763371861958,-500.0,0.00030411,15]
[394198471,1763371861968,-150.0,0.00030511,30]
[394198472,1763371861979,-470.0,0.00030554,2]
[394198473,1763371861988,-169.32,0.00030589,120]
[394198474,1763371861999,-1400.62,0.00030594,2]
[394198475,1763371862010,-1412.49,0.00030594,2]
[394198476,1763371862019,-800.0,0.00030621,2]
[394198477,1763371862029,-470.0,0.00030631,2]
[394198478,1763371862155,-500.0,0.00030684,2]
[394198479,1763371862164,-500.0,0.00030684,2]
[394198480,1763371862174,-184.14053059,0.00030684,10]
[394198481,1763371862184,-500.0,0.00030684,2]
[394198482,1763371862194,-1961.62,0.00030684,2]
[394198483,1763371862203,-500.0,0.00030684,2]
[394198484,1763371862213,-300.0,0.00030684,2]
[394198485,1763371862223,-300.0,0.00030684,2]
[394198486,1763371862233,-500.0,0.00030684,2]
[394198487,1763371862243,-500.0,0.00030684,2]
[394198488,1763371862253,-500.0,0.00030684,2]
[394198489,1763371862261,-367.23502428,0.00030684,2]
[394198490,1763371862271,-500.0,0.00030685,15]
[394198491,1763371862280,-1502.49,0.00030685,30]
[394198492,1763371862289,-800.0,0.00030697,2]
[394198493,1763371862298,-1430.43068894,0.000307,2]
[394198494,1763371862308,-470.0,0.00030707,2]
[394198495,1763371862317,-800.0,0.00030774,2]
[394198496,1763371862326,-470.0,0.00030783,2]
[394198497,1763371862336,-2580.23405931,0.0003084,2]
[394198498,1763371862346,-212.0,0.0003084,30]
[394198499,1763371862357,-800.0,0.00030851,2]
[394198500,1763371862367,-519.10964782,0.0003086,2]
[394198501,1763371862377,-4274.00043756,0.00030888,60]
[394198502,1763371862386,-150.0,0.00030894,30]
[394198503,1763371862396,-3029.66,0.000309,7]
[394198504,1763371862407,-550.22,0.00030925,2]
[394198505,1763371862416,-550.22,0.00030925,2]
[394198506,1763371862425,-550.22,0.00030925,2]
[394198507,1763371862439,-550.22,0.00030925,2]
[394198508,1763371862448,-550.22,0.00030925,2]
[394198509,1763371862459,-550.22,0.00030925,2]
[394198510,1763371862468,-550.22,0.00030925,2]
[394198511,1763371862479,-550.22,0.00030925,2]
[394198512,1763371862490,-550.22,0.00030925,2]
[394198513,1763371862500,-550.22,0.00030925,2]
[394198514,1763371862511,-550.28,0.00030925,2]
[394198515,1763371862520,-550.22,0.00030925,2]
[394198516,1763371862530,-550.22,0.00030925,2]
[394198517,1763371862539,-550.22,0.00030925,2]
[394198518,1763371862548,-550.22,0.00030925,2]
[394198519,1763371862557,-550.22,0.00030925,2]
[394198520,1763371862565,-550.22,0.00030925,2]
[394198521,1763371862573,-550.22,0.00030925,2]
[394198522,1763371862582,-550.22,0.00030925,2]
[394198523,1763371862590,-550.22,0.00030925,2]
[394198524,1763371862599,-550.22,0.00030925,2]
[394198525,1763371862609,-800.0,0.00030927,2]
[394198526,1763371862618,-500.0,0.00030949,7]
[394198527,1763371862626,-500.0,0.00030949,7]
[394198528,1763371862635,-66567.46000803,0.0003095,2]
[394198529,1763371862644,-500.0,0.00030958,2]
[394198530,1763371862652,-500.0,0.00030958,2]
[394198531,1763371862661,-500.0,0.00030958,2]
[394198532,1763371862670,-1961.62,0.00030958,2]
[394198533,1763371862678,-500.0,0.00030958,2]
[394198534,1763371862687,-300.0,0.00030958,2]
[394198535,1763371862697,-300.0,0.00030958,2]
[394198536,1763371862706,-500.0,0.00030958,2]
[394198537,1763371862716,-500.0,0.00030958,2]
[394198538,1763371862725,-500.0,0.00030958,2]
[394198539,1763371862735,-500.0,0.00030959,15]
[394198540,1763371862743,-337.46623967,0.00031,5]
[394198541,1763371862752,-500.0,0.00031,60]
[394198542,1763371862761,-397.62256545,0.00031,120]
[394198543,1763371862771,-150.99999928,0.00031,2]
[394198544,1763371862781,-342.97,0.000312,7]
[394198545,1763371862793,-500.0,0.00031232,2]
[394198546,1763371862803,-500.0,0.00031232,2]
[394198547,1763371862812,-500.0,0.00031232,2]
[394198548,1763371862822,-1961.62,0.00031232,2]
[394198549,1763371862831,-500.0,0.00031232,2]
[394198550,1763371862840,-300.0,0.00031232,2]
[394198551,1763371862849,-300.0,0.00031232,2]
[394198552,1763371862859,-500.0,0.00031232,2]
[394198553,1763371862870,-500.0,0.00031232,2]
[394198554,1763371862880,-500.0,0.00031232,2]
[394198555,1763371862890,-500.0,0.00031233,15]
[394198556,1763371862900,-550.22,0.00031254,2]
[394198557,1763371862911,-550.22,0.00031254,2]
[394198558,1763371862921,-550.22,0.00031254,2]
[394198559,1763371862931,-550.22,0.00031254,2]
[394198560,1763371862940,-506.6445976,0.00031257,7]
[394198561,1763371862949,-693.34,0.000313,30]
[394198562,1763371862958,-4802.18,0.000313,2]
[394198563,1763371862968,-384.63394623,0.0003131,2]
[394198564,1763371862978,-500.0,0.00031342,7]
[394198565,1763371862987,-829.27883707,0.000314,30]
[394198566,1763371862996,-6548.82732371,0.0003143,4]
[394198567,1763371863006,-153.916536,0.0003143,31]
[394198568,1763371863015,-162.756215,0.0003143,31]
[394198569,1763371863024,-151.0,0.0003143,31]
[394198570,1763371863033,-151.0,0.0003143,31]
[394198571,1763371863043,-151.0,0.0003143,31]
[394198572,1763371863052,-151.0,0.0003143,31]
[394198573,1763371863062,-245.28028,0.0003143,31]
[394198574,1763371863071,-245.28028,0.0003143,31]
[394198575,1763371863080,-151.0,0.0003143,31]
[394198576,1763371863090,-245.28028,0.0003143,31]
[394198577,1763371863099,-245.28028,0.0003143,31]
[394198578,1763371863108,-199.55531996,0.0003143,31]
[394198579,1763371863117,-151.0,0.0003143,31]
[394198580,1763371863126,-151.0,0.0003143,31]
[394198581,1763371863135,-151.0,0.0003143,31]
[394198582,1763371863144,-178.059076,0.0003143,31]
[394198583,1763371863154,-151.0,0.0003143,31]
[394198584,1763371863163,-151.0,0.0003143,31]
[394198585,1763371863172,-151.0,0.0003143,31]
[394198586,1763371863181,-151.0,0.0003143,31]
[394198587,1763371863191,-151.0,0.0003143,31]
[394198588,1763371863200,-151.0,0.0003143,31]
[394198589,1763371863209,-151.0,0.0003143,31]
[394198590,1763371863219,-219.399204,0.0003143,31]
[394198591,1763371863229,-219.399204,0.0003143,31]
[394198592,1763371863239,-219.399204,0.0003143,31]
[394198593,1763371863247,-219.399204,0.0003143,31]
[394198594,1763371863257,-151.0,0.0003143,31]
[394198595,1763371863266,-154.582206,0.0003143,31]
[394198596,1763371863276,-175.735979,0.0003143,31]
[394198597,1763371863286,-151.0,0.0003143,15]
[394198598,1763371863295,-153.75999,0.0003143,31]
[394198599,1763371863304,-151.0,0.0003143,31]
[394198600,1763371863313,-214.564455,0.0003143,31]
[394198601,1763371863323,-214.564455,0.0003143,31]
[394198602,1763371863333,-214.564455,0.0003143,31]
[394198603,1763371863342,-214.56445891,0.0003143,31]
[394198604,1763371863352,-151.0,0.0003143,31]
[394198605,1763371863361,-151.0,0.0003143,31]
[394198606,1763371863371,-254.459168,0.0003143,10]
[394198607,1763371863381,-151.0,0.0003143,31]
[394198608,1763371863390,-520.143045,0.0003143,28]
[394198609,1763371863399,-520.143045,0.0003143,28]
[394198610,1763371863409,-151.0,0.0003143,31]
[394198611,1763371863419,-151.0,0.0003143,31]
[394198612,1763371863430,-520.143045,0.0003143,28]
[394198613,1763371863442,-151.0,0.0003143,31]
[394198614,1763371863452,-151.0,0.0003143,31]
[394198615,1763371863462,-520.143051,0.0003143,28]
[394198616,1763371863473,-151.0,0.0003143,31]
[394198617,1763371863484,-151.0,0.0003143,31]
[394198618,1763371863493,-151.0,0.0003143,31]
[394198619,1763371863502,-151.0,0.0003143,31]
[394198620,1763371863515,-157807.21214277,0.0003143,2]
[394198621,1763371863524,-500.0,0.00031455,7]
[394198622,1763371863534,-195.00919329,0.000315,2]
[394198623,1763371863543,-150.0,0.000315,2]
[394198624,1763371863553,-1770.13099601,0.000315,120]
[394198625,1763371863563,-254.02632063,0.000315,2]
[394198626,1763371863572,-159.012008,0.000315,31]
[394198627,1763371863582,-500.0,0.00031506,2]
[394198628,1763371863592,-500.0,0.00031506,2]
[394198629,1763371863601,-500.0,0.00031506,2]
[394198630,1763371863611,-1961.62,0.00031506,2]
[394198631,1763371863621,-500.0,0.00031506,2]
[394198632,1763371863631,-300.0,0.00031506,2]
[394198633,1763371863642,-300.0,0.00031506,2]
[394198634,1763371863653,-500.0,0.00031506,2]
[394198635,1763371863664,-500.0,0.00031506,2]
[394198636,1763371863674,-500.0,0.00031506,2]
[394198637,1763371863683,-500.0,0.00031507,15]
[394198638,1763371863692,-377.49,0.00031507,120]
[394198639,1763371863703,-500.0,0.00031771,7]
[394198640,1763371863713,-500.0,0.00031771,7]
[394198641,1763371863723,-500.0,0.0003178,2]
[394198642,1763371863734,-500.0,0.0003178,2]
[394198643,1763371863745,-1961.62,0.0003178,2]
[394198644,1763371863755,-500.0,0.0003178,2]
[394198645,1763371863764,-300.0,0.0003178,2]
[394198646,1763371863774,-300.0,0.0003178,2]
[394198647,1763371863783,-500.0,0.0003178,2]
[394198648,1763371863794,-500.0,0.0003178,2]
[394198649,1763371863804,-500.0,0.0003178,2]
[394198650,1763371863814,-500.0,0.00031781,15]
[394198651,1763371863825,-479.1746172,0.000318,30]
[394198652,1763371863835,-479.1746172,0.000319,120]
[394198653,1763371863846,-332.08409138,0.00032,30]
[394198654,1763371863857,-1672.20965101,0.00032,120]
[394198655,1763371863870,-2107.12127972,0.00032,2]
[394198656,1763371863880,-670.0,0.00032,120]
[394198657,1763371863892,-159.81300354,0.00032,30]
[394198658,1763371863902,-1000.0,0.00032,120]
[394198659,1763371863912,-225.52824522,0.00032,60]
[394198660,1763371863922,-160.06,0.00032,14]
[394198661,1763371863932,-265.64525194,0.00032,120]
[394198662,1763371863942,-166.34725409,0.00032,120]
[394198663,1763371863952,-175.41954616,0.00032,120]
[394198664,1763371863964,-160.90747591,0.00032,120]
[394198665,1763371863974,-1378.45035715,0.00032,120]
[394198666,1763371863986,-340.27483488,0.00032,120]
[394198667,1763371863996,-173.09106666,0.00032,120]
[394198668,1763371864006,-500.0,0.00032054,2]
[394198669,1763371864015,-500.0,0.00032054,2]
[394198670,1763371864027,-1961.62,0.00032054,2]
[394198671,1763371864037,-500.0,0.00032054,2]
[394198672,1763371864047,-300.0,0.00032054,2]
[394198673,1763371864057,-300.0,0.00032054,2]
[394198674,1763371864067,-500.0,0.00032054,2]
[394198675,1763371864077,-500.0,0.00032054,2]
[394198676,1763371864087,-500.0,0.00032054,2]
[394198677,1763371864096,-500.0,0.00032055,15]
[394198678,1763371864106,-1604.0,0.00032068,2]
[394198679,1763371864115,-705.0,0.00032068,2]
[394198680,1763371864125,-1191.0,0.00032068,2]
[394198681,1763371864135,-907.0,0.00032068,2]
[394198682,1763371864145,-550.22,0.00032076,2]
[394198683,1763371864155,-550.22,0.00032076,2]
[394198684,1763371864164,-550.22,0.00032076,2]
[394198685,1763371864173,-342.97,0.000321,7]
[394198686,1763371864183,-3035.5,0.000321,7]
[394198687,1763371864193,-500.0,0.00032159,7]
[394198688,1763371864202,-171.41518183,0.00032221,30]
[394198689,1763371864212,-883.22796076,0.000323,2]
[394198690,1763371864223,-693.34,0.000323,30]
[394198691,1763371864233,-4802.18,0.000323,2]
[394198692,1763371864242,-3029.66,0.000323,7]
[394198693,1763371864252,-152.0,0.00032314,3]
[394198694,1763371864263,-502.14364942,0.00032328,2]
[394198695,1763371864276,-500.0,0.00032328,2]
[394198696,1763371864287,-1961.62,0.00032328,2]
[394198697,1763371864297,-503.31409984,0.00032328,2]
[394198698,1763371864307,-301.31402035,0.00032328,2]
[394198699,1763371864317,-300.0,0.00032328,2]
[394198700,1763371864328,-500.0,0.00032328,2]
[394198701,1763371864338,-500.0,0.00032328,2]
[394198702,1763371864347,-500.0,0.00032328,2]
[394198703,1763371864358,-500.0,0.00032329,15]
[394198704,1763371864367,-500.0,0.00032376,7]
[394198705,1763371864377,-150.0,0.00032512,2]
[394198706,1763371864387,-300.58,0.00032512,2]
[394198707,1763371864398,-150.0,0.00032512,2]
[394198708,1763371864408,-150.08,0.00032512,2]
[394198709,1763371864419,-150.0,0.00032512,2]
[394198710,1763371864434,-150.0,0.00032512,2]
[394198711,1763371864443,-150.0,0.00032512,2]
[394198712,1763371864453,-150.0,0.00032512,2]
[394198713,1763371864462,-150.0,0.00032512,2]
[394198714,1763371864473,-150.0,0.00032512,2]
[394198715,1763371864483,-150.0,0.00032512,2]
[394198716,1763371864494,-150.0,0.00032512,2]
[394198717,1763371864505,-150.0,0.00032512,2]
[394198718,1763371864515,-150.0,0.00032512,2]
[394198719,1763371864525,-500.0,0.00032593,7]
[394198720,1763371864535,-2000.0,0.000326,2]
[394198721,1763371864545,-500.0,0.00032602,2]
[394198722,1763371864555,-1961.62,0.00032602,2]
[394198723,1763371864565,-301.65658584,0.00032602,2]
[394198724,1763371864575,-500.0,0.00032602,2]
[394198725,1763371864585,-500.0,0.00032602,2]
[394198726,1763371864594,-500.0,0.00032602,2]
[394198727,1763371864604,-500.0,0.00032603,15]
[394198728,1763371864614,-398.86540225,0.00032679,2]
[394198729,1763371864624,-2615.2,0.000327,7]
[394198730,1763371864633,-1050.77532513,0.00032733,7]
[394198731,1763371864643,-4771.78418205,0.000328,2]
[394198732,1763371864653,-212.0,0.0003286,30]
[394198733,1763371864662,-4032.29,0.00032876,120]
[394198734,1763371864670,-4032.29,0.00032876,120]
[394198735,1763371864678,-4032.29,0.00032876,120]
[394198736,1763371864686,-4032.29,0.00032876,120]
[394198737,1763371864695,-4032.29,0.00032876,120]
[394198738,1763371864705,-4032.29,0.00032876,120]
[394198739,1763371864715,-4032.29,0.00032876,120]
[394198740,1763371864724,-4032.29,0.00032876,120]
[394198741,1763371864734,-4032.29,0.00032876,120]
[394198742,1763371864743,-4032.29,0.00032876,120]
[394198743,1763371864753,-4032.29,0.00032876,120]
[394198744,1763371864763,-4032.29,0.00032876,120]
[394198745,1763371864773,-4032.29,0.00032876,120]
[394198746,1763371864782,-4032.29,0.00032876,120]
[394198747,1763371864792,-4032.29,0.00032876,120]
[394198748,1763371864802,-4032.29,0.00032876,120]
[394198749,1763371864811,-4032.29,0.00032876,120]
[394198750,1763371864820,-4032.29,0.00032876,120]
[394198751,1763371864830,-4032.29,0.00032876,120]
[394198752,1763371864840,-4032.29,0.00032876,120]
[394198753,1763371864849,-4032.29,0.00032876,120]
[394198754,1763371864858,-4032.29,0.00032876,120]
[394198755,1763371864868,-4032.29,0.00032876,120]
[394198756,1763371864877,-4032.44254967,0.00032876,120]
[394198757,1763371864887,-349.58904852,0.00032876,2]
[394198758,1763371864897,-436.30093921,0.00032876,2]
[394198759,1763371864907,-401.70106381,0.00032876,2]
[394198760,1763371864917,-500.0,0.00032876,2]
[394198761,1763371864930,-500.0,0.00032876,2]
[394198762,1763371864939,-500.0,0.00032876,2]
[394198763,1763371864950,-451.53707179,0.00032876,2]
[394198764,1763371864959,-301.7579468,0.00032876,2]
[394198765,1763371864969,-500.0,0.00032876,2]
[394198766,1763371864980,-191.44269846,0.00032876,2]
[394198767,1763371864989,-500.0,0.00032876,2]
[394198768,1763371864999,-183.18696094,0.00032876,2]
[394198769,1763371865010,-500.0,0.00032876,2]
[394198770,1763371865020,-500.0,0.00032876,2]
[394198771,1763371865031,-500.0,0.00032876,2]
[394198772,1763371865041,-500.0,0.00032876,2]
[394198773,1763371865051,-500.0,0.00032876,2]
[394198774,1763371865060,-500.0,0.00032876,2]
[394198775,1763371865071,-500.0,0.00032876,2]
[394198776,1763371865080,-500.0,0.00032876,2]
[394198777,1763371865090,-500.0,0.00032876,2]
[394198778,1763371865101,-500.0,0.00032876,2]
[394198779,1763371865111,-153.52639919,0.00032876,2]
[394198780,1763371865121,-500.0,0.00032876,2]
[394198781,1763371865131,-393.64897686,0.00032876,2]
[394198782,1763371865140,-1128.60065698,0.00032876,120]
[394198783,1763371865150,-500.0,0.00032876,2]
[394198784,1763371865160,-1961.62,0.00032876,2]
[394198785,1763371865170,-500.0,0.00032876,2]
[394198786,1763371865180,-500.0,0.00032876,2]
[394198787,1763371865189,-500.0,0.00032876,2]
[394198788,1763371865200,-600.0,0.00032877,2]
[394198789,1763371865209,-500.0,0.00032877,15]
[394198790,1763371865219,-340.63,0.00032877,2]
[394198791,1763371865230,-407.24,0.00032877,2]
[394198792,1763371865240,-151.0,0.00032877,31]
[394198793,1763371865251,-198.979555,0.00032877,31]
[394198794,1763371865261,-500.0,0.00032877,7]
[394198795,1763371865272,-500.0,0.00032877,7]
[394198796,1763371865283,-500.0,0.00032877,7]
[394198797,1763371865293,-500.0,0.00032877,7]
[394198798,1763371865303,-500.0,0.00032877,7]
[394198799,1763371865313,-500.0,0.00032877,7]
[394198800,1763371865323,-500.0,0.00032877,7]
[394198801,1763371865333,-500.0,0.00032877,7]
[394198802,1763371865343,-500.0,0.00032877,7]
[394198803,1763371865352,-500.0,0.00032877,7]
[394198804,1763371865362,-500.0,0.00032877,7]
[394198805,1763371865373,-500.0,0.00032877,7]
[394198806,1763371865383,-500.0,0.00032877,7]
[394198807,1763371865392,-500.0,0.00032877,7]
[394198808,1763371865402,-500.0,0.00032877,7]
[394198809,1763371865412,-500.0,0.00032877,7]
[394198810,1763371865422,-622.19138601,0.00032877,7]
[394198811,1763371865434,-500.0,0.00032877,7]
[394198812,1763371865443,-500.0,0.00032877,7]
[394198813,1763371865454,-599.7224741,0.00032877,7]
[394198814,1763371865464,-500.0,0.00032877,7]
[394198815,1763371865475,-500.0,0.00032877,7]
[394198816,1763371865485,-479.1746172,0.000329,120]
[394198817,1763371865495,-1539.04503676,0.00033,2]
[394198818,1763371865505,-947.25109186,0.00033,2]
[394198819,1763371865515,-151.67367326,0.00033,2]
[394198820,1763371865525,-1000.0,0.00033,10]
[394198821,1763371865535,-1000.0,0.00033,10]
[394198822,1763371865545,-1000.0,0.00033,8]
[394198823,1763371865555,-342.97,0.00033,14]
[394198824,1763371865565,-15842.96518586,0.00033,13]
[394198825,1763371865575,-160.90747591,0.00033,120]
[394198826,1763371865585,-1378.45035715,0.00033,120]
[394198827,1763371865595,-340.27483488,0.00033,120]
[394198828,1763371865605,-50958.67249788,0.00033,2]
[394198829,1763371865615,-374.58708372,0.0003307,2]
[394198830,1763371865625,-1753.91,0.000331,30]
[394198831,1763371865635,-2814558.80729458,0.00033136,120]
[394198832,1763371865645,-151.0,0.00033136,31]
[394198833,1763371865655,-213.546048,0.00033136,31]
[394198834,1763371865665,-151.0,0.00033136,31]
[394198835,1763371865675,-151.0,0.00033136,31]
[394198836,1763371865685,-151.0,0.00033136,31]
[394198837,1763371865695,-245.28028,0.00033136,31]
[394198838,1763371865705,-245.28028,0.00033136,31]
[394198839,1763371865714,-151.0,0.00033136,31]
[394198840,1763371865724,-245.28028,0.00033136,31]
[394198841,1763371865735,-245.28028,0.00033136,31]
[394198842,1763371865746,-151.0,0.00033136,31]
[394198843,1763371865756,-151.0,0.00033136,31]
[394198844,1763371865766,-151.0,0.00033136,31]
[394198845,1763371865776,-151.0,0.00033136,31]
[394198846,1763371865786,-151.0,0.00033136,31]
[394198847,1763371865796,-151.0,0.00033136,31]
[394198848,1763371865806,-151.0,0.00033136,31]
[394198849,1763371865816,-151.0,0.00033136,31]
[394198850,1763371865826,-151.0,0.00033136,31]
[394198851,1763371865835,-193.748873,0.00033136,31]
[394198852,1763371865845,-219.399204,0.00033136,31]
[394198853,1763371865855,-219.399204,0.00033136,31]
[394198854,1763371865864,-219.399204,0.00033136,31]
[394198855,1763371866045,-219.399202,0.00033136,31]
[394198856,1763371866057,-151.0,0.00033136,31]
[394198857,1763371866068,-151.0,0.00033136,15]
[394198858,1763371866079,-151.0,0.00033136,31]
[394198859,1763371866090,-500.0,0.0003315,2]
[394198860,1763371866101,-1961.62,0.0003315,2]
[394198861,1763371866112,-500.0,0.0003315,2]
[394198862,1763371866123,-500.0,0.0003315,2]
[394198863,1763371866132,-500.0,0.0003315,2]
[394198864,1763371866141,-500.0,0.00033151,30]
[394198865,1763371866150,-500.0,0.00033161,7]
[394198866,1763371866161,-478.6,0.00033165,2]
[394198867,1763371866171,-153.0,0.000332,2]
[394198868,1763371866180,-550.22,0.00033227,2]
[394198869,1763371866190,-550.22,0.00033227,2]
[394198870,1763371866200,-550.22,0.00033227,2]
[394198871,1763371866211,-550.22,0.00033227,2]
[394198872,1763371866221,-550.22,0.00033227,2]
[394198873,1763371866231,-550.22,0.00033227,2]
[394198874,1763371866240,-550.22,0.00033227,2]
[394198875,1763371866249,-550.22,0.00033227,2]
[394198876,1763371866259,-550.22,0.00033227,2]
[394198877,1763371866269,-550.22,0.00033227,2]
[394198878,1763371866279,-550.22,0.00033227,2]
[394198879,1763371866288,-150.0,0.00033334,2]
[394198880,1763371866298,-150.0,0.00033334,2]
[394198881,1763371866308,-300.0,0.00033334,2]
[394198882,1763371866319,-150.0,0.00033334,2]
[394198883,1763371866329,-300.65,0.00033334,2]
[394198884,1763371866339,-150.0,0.00033334,2]
[394198885,1763371866348,-169.66,0.00033354,2]
[394198886,1763371866359,-150.0,0.00033354,2]
[394198887,1763371866368,-150.0,0.00033354,2]
[394198888,1763371866378,-693.34,0.000334,30]
[394198889,1763371866388,-4802.18,0.000334,2]
[394198890,1763371866399,-500.0,0.00033415,7]
[394198891,1763371866409,-500.0,0.00033415,7]
[394198892,1763371866420,-3310.93169692,0.00033423,2]
[394198893,1763371866433,-500.0,0.00033424,2]
[394198894,1763371866454,-1961.62,0.00033424,2]
[394198895,1763371866467,-500.0,0.00033424,2]
[394198896,1763371866476,-500.0,0.00033424,2]
[394198897,1763371866487,-531.9777553,0.00033424,2]
[394198898,1763371866496,-500.0,0.00033425,30]
[394198899,1763371866505,-600.0,0.00033425,2]
[394198900,1763371866515,-1196.56182403,0.000335,2]
[394198901,1763371866525,-550.22,0.00033555,2]
[394198902,1763371866535,-550.22,0.00033555,2]
[394198903,1763371866544,-550.22,0.00033555,2]
[394198904,1763371866553,-550.22,0.00033555,2]
[394198905,1763371866563,-550.22,0.00033555,2]
[394198906,1763371866572,-550.22,0.00033555,2]
[394198907,1763371866581,-550.22,0.00033555,2]
[394198908,1763371866590,-550.22,0.00033555,2]
[394198909,1763371866600,-550.22,0.00033555,2]
[394198910,1763371866609,-550.22,0.00033555,2]
[394198911,1763371866618,-550.22,0.00033555,2]
[394198912,1763371866628,-152.0,0.00033654,4]
[394198913,1763371866637,-500.0,0.00033698,2]
[394198914,1763371866647,-1961.62,0.00033698,2]
[394198915,1763371866656,-500.0,0.00033698,2]
[394198916,1763371866667,-500.0,0.00033698,2]
[394198917,1763371866678,-500.0,0.00033699,30]
[394198918,1763371866687,-160.90747591,0.000339,120]
[394198919,1763371866697,-1378.45035715,0.000339,120]
[394198920,1763371866706,-340.27483488,0.000339,120]
[394198921,1763371866715,-500.0,0.00033939,60]
[394198922,1763371866725,-500.0,0.00033972,2]
[394198923,1763371866736,-1961.62,0.00033972,2]
[394198924,1763371866745,-494.28895856,0.00033972,2]
[394198925,1763371866755,-500.0,0.00033972,2]
[394198926,1763371866764,-600.0,0.00033973,2]
[394198927,1763371866773,-790.47241054,0.00034,7]
[394198928,1763371866783,-976.96,0.00034,2]
[394198929,1763371866794,-1000.0,0.00034,120]
[394198930,1763371866804,-175.49662053,0.00034,30]